bitfinex/quotes_ETHUSD_20250623
["timestamp","ask_amount","ask_price","bid_price","bid_amount"]
[1750707942278,16.31,2308.6,2308.3,4.33208503]
[1750707942593,16.31,2308.6,2308.4,4.33198538]
[1750707942983,2.203,2308.5,2308.4,4.33198538]
[1750707943166,16.31,2308.6,2308.4,4.33198538]
[1750707943366,2.203,2308.5,2307.9,8.51671]
[1750707943609,2.203,2308.5,2308.0,0.89216673]
[1750707943896,10.55,2308.4,2307.8,0.7531]
[1750707944198,10.55,2308.4,2308.0,4.33266881]
[1750707944606,0.13552284,2308.3,2308.0,4.33266881]
[1750707944773,10.55,2308.4,2308.1,4.33253017]
[1750707945199,10.0,2308.4,2308.2,4.33237101]
[1750707945509,10.0,2308.4,2308.2,4.33226846]
[1750707945869,10.0,2308.4,2308.1,4.33247871]
[1750707945870,10.0,2308.4,2308.3,4.33219252]
[1750707946612,6.31,2308.6,2308.4,4.33198233]
[1750707946797,2.33850956,2308.5,2308.4,4.33197625]
[1750707946993,12.33850958,2308.5,2308.2,4.33225245]
[1750707947194,12.203,2308.5,2308.3,4.33205864]
[1750707947392,0.68550997,2308.4,2308.0,4.33264185]
[1750707947594,0.55,2308.4,2308.0,8.66526895]
[1750707947786,0.77,2308.3,2307.9,4.33282744]
[1750707948111,7.08,2308.3,2307.9,4.33282744]
[1750707948310,10.0,2308.2,2307.9,4.33282744]
[1750707948805,10.0,2308.2,2308.1,4.33256791]
[1750707949710,10.0,2308.2,2307.9,4.33284173]
[1750707950214,10.0,2308.2,2307.9,4.3327892]
[1750707950513,10.0,2308.2,2308.1,4.33256791]
[1750707950706,10.0,2308.2,2307.9,4.33282467]
[1750707951113,10.0,2308.2,2308.0,4.33275511]
[1750707951477,10.55,2308.2,2308.1,4.33256791]
[1750707952205,10.55,2308.2,2308.0,4.3326565]
[1750707953195,16.86,2308.2,2308.0,4.3326565]
[1750707955015,16.86,2308.2,2308.0,8.66527197]
[1750707955217,16.86,2308.2,2308.0,4.33261547]
[1750707956215,16.86,2308.2,2308.1,4.33256791]
[1750707956716,16.86,2308.2,2308.0,4.33264357]
[1750707957225,16.86,2308.2,2308.0,8.6652441]
[1750707957418,16.86,2308.2,2308.1,4.33256791]
[1750707957720,18.84135031,2308.2,2308.1,4.33256791]
[1750707959486,18.97687574,2308.2,2308.1,4.33256791]
[1750707960423,18.84135031,2308.2,2308.1,4.33256791]
[1750707960725,16.99552,2308.2,2308.0,4.33268421]
[1750707960923,16.86,2308.2,2308.0,4.33268421]
[1750707961625,0.55,2308.1,2307.5,4.33369447]
[1750707961831,10.1478802,2307.6,2307.3,4.33393087]
[1750707962001,10.6978802,2307.4,2307.1,0.29602325]
[1750707962330,10.6978802,2307.2,2307.1,0.29602325]
[1750707962528,10.83345644,2307.2,2307.1,0.29602325]
[1750707962824,11.65336796,2307.2,2307.1,0.29602325]
[1750707963297,1.50548525,2307.2,2307.1,0.29602325]
[1750707963701,23.81870199,2307.2,2307.1,0.29602325]
[1750707963896,23.81870647,2307.2,2307.1,0.29602325]
[1750707964096,23.68311674,2307.2,2307.1,0.29602325]
[1750707964416,23.81870812,2307.2,2307.1,0.29602325]
[1750707964612,23.81870514,2307.2,2307.1,0.29602325]
[1750707964816,13.67082494,2307.2,2307.1,0.29602325]
[1750707965307,10.0,2307.2,2307.1,0.29602325]
[1750707967531,10.55,2307.2,2307.1,0.29602325]
[1750707968194,10.0,2307.2,2307.1,0.29602325]
[1750707968441,10.0,2307.2,2307.1,4.63046909]
[1750707969213,10.0,2307.2,2307.1,1.05182325]
[1750707969431,10.0,2307.2,2307.1,0.29602325]
[1750707969954,22.93026822,2307.2,2307.1,0.29602325]
[1750707970494,23.0658629,2307.2,2307.1,0.29602325]
[1750707970749,23.06586889,2307.2,2307.1,0.29602325]
[1750707971037,23.06586769,2307.2,2307.1,0.29602325]
[1750707971397,23.06586761,2307.2,2307.1,0.29602325]
[1750707972311,23.88586761,2307.2,2307.1,0.29602325]
[1750707972611,23.88587436,2307.2,2307.1,0.29602325]
[1750707973015,23.88587622,2307.2,2307.1,0.29602325]
[1750707973322,23.88587599,2307.2,2307.1,0.29602325]
[1750707973926,23.88587645,2307.2,2307.1,0.29602325]
[1750707974113,23.88587587,2307.2,2307.1,0.29602325]
[1750707974838,23.88587533,2307.2,2307.1,0.29602325]
[1750707975252,13.88587533,2307.2,2307.1,0.29602325]
[1750707975542,23.9610973,2307.2,2307.1,0.29602325]
[1750707975708,31.72370632,2307.2,2307.1,0.29602325]
[1750707976603,10.55,2307.1,2306.4,4.3356192]
[1750707976806,0.55,2306.8,2306.4,4.3356192]
[1750707977004,2.176,2306.7,2306.4,4.3356192]
[1750707977240,2.176,2306.7,2306.5,4.33554775]
[1750707977449,2.176,2306.7,2306.3,5.11343617]
[1750707977835,2.176,2306.7,2306.1,4.37618871]
[1750707977836,10.1478802,2306.4,2306.1,0.7988]
[1750707978051,10.1478802,2306.4,2306.1,0.04]
[1750707978342,0.55,2306.3,2306.1,0.04]
[1750707978547,2.726,2306.2,2306.1,0.04]
[1750707980354,13.6458802,2306.2,2306.1,0.04]
[1750707980650,0.772,2305.8,2305.4,0.2248756]
[1750707980811,11.322,2305.5,2305.4,0.2248756]
[1750707981005,0.55,2305.3,2305.1,0.04]
[1750707981222,20.08060824,2305.2,2305.1,0.04]
[1750707981434,0.13572804,2305.2,2305.1,0.04]
[1750707981634,2.177,2305.2,2305.1,0.04]
[1750707981953,12.727,2305.2,2305.1,0.04]
[1750707982170,10.0,2305.2,2305.1,0.04]
[1750707982326,12.727,2305.2,2305.1,0.04]
[1750707982921,13.499,2305.2,2305.1,0.04]
[1750707983558,12.727,2305.2,2305.1,0.04]
[1750707983925,10.0,2305.2,2305.1,0.04]
[1750707984229,12.177,2305.2,2305.1,0.04]
[1750707985168,12.177,2305.2,2305.1,4.37820658]
[1750707985367,12.177,2305.2,2305.1,0.04]
[1750707986440,12.177,2305.2,2305.1,4.37820658]
[1750707986829,21.5597,2305.2,2305.1,0.04]
[1750707987166,22.3463,2305.2,2305.1,0.04]
[1750707988467,22.48203386,2305.2,2305.1,0.04]
[1750707988770,22.48203178,2305.2,2305.1,0.04]
[1750707989331,10.55,2305.1,2304.1,0.04]
[1750707989664,0.55,2304.5,2304.1,0.04]
[1750707989827,2.152,2304.4,2304.1,0.04]
[1750707990827,10.55,2304.3,2304.1,0.04]
[1750707991331,8.959,2304.2,2304.1,0.04]
[1750707993130,18.959,2304.2,2304.1,0.04]
[1750707993332,23.36564522,2304.2,2304.1,0.04]
[1750707993887,10.55,2304.2,2304.1,0.04]
[1750707994035,12.153,2304.2,2304.1,4.3800894]
[1750707994234,26.91665957,2304.6,2304.5,4.33933608]
[1750707994235,12.575,2304.6,2304.5,4.33933608]
[1750707994481,12.575,2304.6,2304.4,0.7976]
[1750707994768,10.0,2304.5,2304.1,4.37997752]
[1750707994975,10.0,2304.5,2304.1,0.04]
[1750707995274,17.608,2304.5,2304.1,4.38001363]
[1750707995450,0.55,2304.4,2304.1,4.38008418]
[1750707995638,0.55,2304.4,2304.1,4.36635418]
[1750707996068,0.55,2304.4,2304.1,4.36635933]
[1750707996868,0.55,2304.4,2304.2,4.3398037]
[1750707997087,0.55,2304.4,2304.2,4.33973121]
[1750707997296,0.55,2304.4,2304.1,4.36621926]
[1750707997790,0.55,2304.2,2304.1,0.02627]
[1750707998195,10.0,2304.3,2304.1,0.02627]
[1750707998399,2.703,2304.2,2304.1,0.02627]
[1750708001294,3.65776983,2304.2,2304.1,0.02627]
[1750708001492,6.09137681,2304.2,2304.1,0.02627]
[1750708002094,6.0913772,2304.2,2304.1,0.02627]
[1750708002285,22.37080446,2304.2,2304.1,0.02627]
[1750708003093,32.37080446,2304.2,2304.1,0.02627]
[1750708003459,30.21780446,2304.2,2304.1,0.02627]
[1750708003796,39.97181477,2304.2,2304.1,0.02627]
[1750708003960,39.83603424,2304.2,2304.1,0.02627]
[1750708004162,39.9718146,2304.2,2304.1,0.02627]
[1750708004581,13.93838734,2304.2,2304.1,0.02627]
[1750708004788,23.69138654,2304.2,2304.1,0.02627]
[1750708005081,23.55560698,2304.2,2304.1,0.02627]
[1750708005271,23.69138639,2304.2,2304.1,0.02627]
[1750708005671,23.69138354,2304.2,2304.1,0.02627]
[1750708006011,20.43677602,2304.2,2304.1,0.02627]
[1750708006571,20.43676627,2304.2,2304.1,0.02627]
[1750708007143,20.43676674,2304.2,2304.1,0.02627]
[1750708007343,12.8387666,2304.2,2304.1,4.3663594]
[1750708007637,12.8387666,2304.2,2304.1,0.02627]
[1750708008936,21.1964666,2304.2,2304.1,0.02627]
[1750708009234,25.25138599,2304.2,2304.1,0.02627]
[1750708009521,25.25138838,2304.2,2304.1,0.02627]
[1750708011208,11.19647278,2304.2,2304.1,0.02627]
[1750708011383,11.19647004,2304.2,2304.1,0.02627]
[1750708011789,11.19647079,2304.2,2304.1,0.02627]
[1750708012503,11.19647081,2304.2,2304.1,0.02627]
[1750708013120,20.43476997,2304.2,2304.1,0.02627]
[1750708013339,20.43476671,2304.2,2304.1,0.02627]
[1750708014286,20.299,2304.2,2304.1,0.02627]
[1750708014519,20.43476596,2304.2,2304.1,0.02627]
[1750708014724,20.43476596,2304.2,2304.1,5.1202594]
[1750708014725,12.28976596,2304.2,2304.1,5.1202594]
[1750708014909,2.28976596,2304.2,2304.1,6.06630761]
[1750708015220,2.28975271,2304.2,2304.1,6.06630761]
[1750708015519,2.28975086,2304.2,2304.1,6.06630761]
[1750708015700,2.28975011,2304.2,2304.1,6.06630761]
[1750708016283,2.28974697,2304.2,2304.1,6.06630761]
[1750708016825,2.28974443,2304.2,2304.1,6.06630761]
[1750708018191,2.28974268,2304.2,2304.1,6.06630761]
[1750708018595,2.28974268,2304.2,2304.1,0.78017]
[1750708020256,2.28974268,2304.2,2304.1,0.02627]
[1750708020461,0.13574268,2304.2,2304.1,5.1609594]
[1750708021259,2.132,2304.6,2304.4,4.33952438]
[1750708021659,2.132,2304.6,2304.5,4.33933608]
[1750708021867,2.26771205,2304.6,2304.5,4.33933608]
[1750708022660,2.26771205,2304.6,2304.4,4.33942531]
[1750708022843,0.13571205,2304.5,2304.3,5.13417161]
[1750708023048,2.132,2304.6,2304.5,4.33933608]
[1750708023385,2.26772621,2304.6,2304.5,4.33933608]
[1750708023525,2.26772621,2304.6,2304.5,6.08708213]
[1750708023721,2.267717,2304.6,2304.5,6.08708213]
[1750708024258,2.132,2304.6,2304.5,6.08708213]
[1750708024627,10.0,2304.9,2304.8,4.33877125]
[1750708024822,10.13570405,2304.9,2304.7,4.33882768]
[1750708025026,0.13570405,2304.8,2304.6,4.33897477]
[1750708025366,0.13570405,2304.7,2304.6,4.33914779]
[1750708025569,0.13570405,2304.7,2304.5,6.0869286]
[1750708025725,10.0,2304.9,2304.5,5.13958255]
[1750708026066,0.13571673,2304.8,2304.5,0.8004]
[1750708026268,10.0,2304.9,2304.4,4.33944933]
[1750708026269,0.13571673,2304.7,2304.4,4.33944933]
[1750708026425,0.13571673,2304.6,2304.3,0.8306]
[1750708026628,12.131,2304.7,2304.5,4.33917578]
[1750708026947,10.0,2304.9,2304.8,4.338653]
[1750708027182,6.31,2305.0,2304.9,4.33858301]
[1750708027340,6.44570067,2305.0,2304.9,4.33858301]
[1750708027543,6.31,2305.0,2304.9,4.33858301]
[1750708028409,8.441,2305.0,2304.7,5.1694792]
[1750708028552,1.3733,2304.8,2304.4,0.8044]
[1750708028759,1.3733,2304.8,2304.3,4.33963361]
[1750708028958,10.0,2304.7,2304.3,4.33963361]
[1750708029155,10.0,2304.7,2304.6,4.33914779]
[1750708029385,12.131,2304.7,2304.6,5.09424779]
[1750708031083,12.131,2304.7,2304.6,0.7551]
[1750708031251,12.131,2304.7,2304.5,4.33925431]
[1750708031587,12.131,2304.7,2304.6,4.33914779]
[1750708031971,12.131,2304.7,2304.5,4.33921736]
[1750708032555,12.131,2304.7,2304.6,4.33914779]
[1750708033156,12.131,2304.7,2304.5,4.33922869]
[1750708034072,12.131,2304.7,2304.6,4.33914779]
[1750708034372,12.131,2304.7,2304.4,12.70592938]
[1750708034607,12.131,2304.7,2304.4,8.3665]
[1750708034804,12.131,2304.7,2304.6,4.33914779]
[1750708037525,12.131,2304.7,2304.5,4.33922843]
[1750708037686,12.131,2304.7,2304.6,4.33914779]
[1750708039287,12.131,2304.7,2304.5,4.33921837]
[1750708039985,10.0,2304.7,2304.6,4.33914779]
[1750708040209,10.0,2304.7,2304.5,4.33923597]
[1750708040412,10.0,2304.7,2304.5,4.80347325]
[1750708040719,10.0,2304.7,2304.5,12.35947311]
[1750708040906,10.0,2304.7,2304.4,12.69791371]
[1750708041076,10.0,2304.7,2304.5,4.33923409]
[1750708042120,10.0,2304.7,2304.4,12.69791497]
[1750708042324,10.0,2304.7,2304.6,4.33914779]
[1750708043926,6.31,2304.8,2304.7,4.33895951]
[1750708044226,16.31,2304.8,2304.7,4.33895951]
[1750708044611,6.31,2304.8,2304.7,4.33895951]
[1750708044906,2.131,2305.0,2304.8,4.33871497]
[1750708045827,6.31,2306.0,2304.9,5.08990947]
[1750708045985,0.7877,2305.7,2305.1,4.33808291]
[1750708046181,0.13567702,2305.6,2305.4,4.33753984]
[1750708046385,2.9187,2305.9,2305.5,4.33739644]
[1750708046693,6.31,2306.0,2305.7,4.33707767]
[1750708047041,6.31,2306.0,2305.8,5.08817617]
[1750708047329,16.31942726,2306.9,2305.8,5.08817617]
[1750708047330,6.31,2306.8,2306.5,4.3354947]
[1750708047483,10.1356105,2306.7,2306.6,4.33538541]
[1750708047829,6.31,2306.8,2306.7,4.33519746]
[1750708048028,6.31,2306.8,2306.7,11.88219746]
[1750708048236,6.31,2306.8,2306.7,4.33519746]
[1750708048386,0.04,2306.9,2306.8,5.08640953]
[1750708049418,0.04,2306.9,2306.8,12.63140953]
[1750708049928,0.04,2306.9,2306.8,5.08640953]
[1750708050313,0.04,2306.9,2306.8,12.62840953]
[1750708054248,0.04,2306.9,2306.8,12.62340953]
[1750708054810,0.04,2306.9,2306.8,14.73040953]
[1750708055645,0.04,2306.9,2306.8,14.72940953]
[1750708056454,0.04,2306.9,2306.8,25.27940953]
[1750708057014,0.04,2306.9,2306.8,25.27540953]
[1750708057220,0.04,2306.9,2306.8,24.72540953]
[1750708057533,0.04,2306.9,2306.8,22.61740953]
[1750708058119,0.04,2306.9,2306.8,23.16740953]
[1750708059245,0.04,2306.9,2306.8,15.08640953]
[1750708059455,0.04,2306.9,2306.8,24.72340953]
[1750708059628,0.04,2306.9,2306.8,15.08640953]
[1750708059824,0.04,2306.9,2306.8,24.72240953]
[1750708060137,0.04,2306.9,2306.8,25.27240953]
[1750708062461,0.04,2306.9,2306.8,15.08640953]
[1750708062629,0.04,2306.9,2306.8,22.61140953]
[1750708063147,0.04,2307.9,2307.8,4.33313112]
[1750708063344,0.04,2307.9,2307.8,12.72277153]
[1750708066495,0.04,2307.9,2307.8,12.71877153]
[1750708067241,0.04,2307.9,2307.8,11.85213112]
[1750708067529,0.813,2307.9,2307.1,0.7506]
[1750708067820,0.813,2307.9,2307.8,4.33313112]
[1750708068027,0.813,2307.9,2307.1,0.7506]
[1750708068227,0.813,2307.9,2307.4,4.33373941]
[1750708068228,0.55,2307.8,2307.4,4.33373941]
[1750708068434,0.55,2307.8,2307.5,7.517]
[1750708069141,0.55,2307.6,2306.4,4.33571588]
[1750708069346,0.55,2307.6,2306.5,0.43357159]
[1750708069347,0.55,2307.4,2306.5,0.43357159]
[1750708069649,0.7807,2307.5,2307.3,4.33397355]
[1750708069787,0.7807,2307.5,2307.3,7.516]
[1750708069986,0.7807,2307.5,2307.3,11.85006715]
[1750708070297,0.7807,2307.5,2307.3,7.516]
[1750708070492,0.7807,2307.5,2307.3,11.84994099]
[1750708070695,0.7807,2307.5,2307.4,4.33388229]
[1750708071621,12.107,2307.7,2307.6,4.33350667]
[1750708072408,12.107,2307.7,2307.5,7.515]
[1750708072622,12.107,2307.7,2307.6,4.33350667]
[1750708072801,10.0,2307.7,2307.6,4.33350667]
[1750708073333,2.107,2308.0,2307.7,4.33331888]
[1750708073534,2.107,2308.0,2307.3,5.11506134]
[1750708073535,2.107,2308.0,2307.8,7.513]
[1750708074426,0.7953,2307.7,2307.4,7.512]
[1750708074625,0.7953,2307.7,2307.4,11.84587706]
[1750708074925,0.7953,2307.7,2307.5,4.33368586]
[1750708075337,0.7953,2307.7,2307.5,11.84468586]
[1750708075524,0.7953,2307.7,2307.5,7.511]
[1750708076335,0.13554841,2307.6,2307.5,7.511]
[1750708076521,0.13554841,2307.6,2307.5,11.84469447]
[1750708076700,0.7953,2307.7,2307.5,11.84469447]
[1750708077234,0.55,2307.5,2306.9,4.33482162]
[1750708077439,6.31,2307.6,2307.5,4.33369447]
[1750708077609,6.44555174,2307.6,2307.4,11.84277893]
[1750708077810,0.13555217,2307.5,2307.3,4.33395587]
[1750708078012,6.31,2307.6,2307.4,7.509]
[1750708078228,0.13555261,2307.5,2307.4,7.509]
[1750708078622,0.13555261,2307.5,2307.3,4.33395587]
[1750708078930,6.31,2307.6,2307.5,4.33369447]
[1750708079134,6.31,2307.6,2307.4,7.509]
[1750708079135,6.44555476,2307.6,2307.4,11.84277493]
[1750708079297,0.13555476,2307.5,2307.4,11.84277493]
[1750708079497,0.13555228,2307.5,2307.4,11.84277493]
[1750708079835,0.13555269,2307.5,2307.4,11.84277493]
[1750708080241,6.13711172,2307.6,2307.5,4.33369447]
[1750708080446,6.27265743,2307.6,2307.4,11.84278474]
[1750708080605,0.13554889,2307.5,2307.4,11.84278474]
[1750708080810,6.13711172,2307.6,2307.5,4.33369447]
[1750708081011,6.27266099,2307.6,2307.4,11.84279656]
[1750708081321,0.8308,2307.4,2307.1,4.33428751]
[1750708081517,0.8308,2307.4,2307.3,4.33407012]
[1750708081842,6.76437782,2307.6,2307.5,4.33369447]
[1750708081843,16.13711172,2307.6,2307.5,4.33369447]
[1750708082020,16.2726618,2307.6,2307.5,4.33369447]
[1750708082220,16.2726618,2307.6,2307.5,11.83869447]
[1750708082866,16.27266123,2307.6,2307.5,11.83869447]
[1750708083070,6.27266123,2307.6,2307.5,11.83869447]
[1750708083373,0.04,2307.9,2307.8,4.33313112]
[1750708083643,0.17552824,2307.9,2307.8,11.83713112]
[1750708083835,0.17552811,2307.9,2307.8,11.83713112]
[1750708084809,0.1755263,2307.9,2307.8,11.83713112]
[1750708085038,0.17552639,2307.9,2307.8,11.83713112]
[1750708085407,0.17552639,2307.9,2307.2,1.72570476]
[1750708085612,0.94422639,2307.8,2307.7,4.33331888]
[1750708086343,0.94424157,2307.8,2307.7,4.33331888]
[1750708087438,0.8087,2307.8,2307.7,4.33331888]
[1750708087647,0.94423593,2307.8,2307.7,4.33331888]
[1750708087854,0.8087,2307.8,2307.7,4.33331888]
[1750708088165,2.129,2307.9,2307.8,4.33313112]
[1750708088362,2.26452846,2307.9,2307.8,4.33313112]
[1750708088584,2.26452736,2307.9,2307.8,4.33313112]
[1750708088930,0.17552736,2307.9,2307.8,11.83313112]
[1750708089270,0.17552736,2307.9,2307.8,4.33313112]
[1750708089459,0.17552736,2307.9,2307.8,11.83213112]
[1750708089757,0.04,2307.9,2307.8,11.83213112]
[1750708089944,0.17553505,2307.9,2307.8,11.83213112]
[1750708090146,0.04,2307.9,2307.8,4.33313112]
[1750708090345,0.17553477,2307.9,2307.7,11.83124872]
[1750708090658,0.13553846,2307.8,2307.7,11.83124872]
[1750708090960,0.68553846,2307.8,2307.6,4.33340039]
[1750708091152,0.55,2307.8,2307.7,4.33331888]
[1750708091351,0.68554298,2307.8,2307.7,4.33331888]
[1750708091660,0.13554298,2307.8,2307.7,4.33331888]
[1750708092342,2.129,2307.9,2307.8,4.33313112]
[1750708092548,2.26454042,2307.9,2307.8,4.33313112]
[1750708092753,2.26454042,2307.9,2307.8,11.83013112]
[1750708092947,0.17554042,2307.9,2307.8,11.83013112]
[1750708093263,0.04,2307.9,2307.8,12.70012463]
[1750708095284,0.04,2307.9,2307.8,13.49622463]
[1750708096353,0.04,2307.9,2307.8,5.99922463]
[1750708096586,0.04,2307.9,2307.8,13.49222463]
[1750708097505,0.04,2307.9,2307.8,16.08078177]
[1750708098354,0.04,2307.9,2307.8,13.49222463]
[1750708098794,0.04,2307.9,2307.8,15.57822463]
[1750708099861,0.04,2307.9,2307.8,5.99922463]
[1750708100059,0.04,2307.9,2307.8,16.07483282]
[1750708100471,0.04,2307.9,2307.8,13.48822463]
[1750708101288,0.04,2308.9,2308.8,4.33125433]
[1750708101477,0.04,2308.9,2308.8,12.68313755]
[1750708102212,0.7877,2309.4,2308.8,12.68313755]
[1750708102213,6.13711172,2309.6,2309.5,4.32994154]
[1750708102359,2.088,2310.0,2309.5,4.32994154]
[1750708102360,0.8277,2309.9,2309.5,7.486]
[1750708102570,0.8277,2309.9,2309.8,4.32937916]
[1750708102791,0.8277,2309.9,2309.8,11.81537916]
[1750708102980,10.8277,2309.9,2309.8,7.486]
[1750708103306,0.8277,2309.9,2309.8,11.81537916]
[1750708104401,0.8277,2309.9,2309.8,12.68537267]
[1750708104702,0.04,2309.9,2309.8,12.68537267]
[1750708105683,0.04,2309.9,2309.8,11.81537916]
[1750708106303,0.04,2309.9,2309.8,12.60707916]
[1750708107086,0.04,2309.9,2309.8,12.60107916]
[1750708107286,0.04,2309.9,2309.8,4.32937916]
[1750708107608,0.04,2309.9,2309.8,11.80937916]
[1750708107979,0.04,2309.9,2309.8,11.80837916]
[1750708108487,0.04,2309.9,2309.8,7.479]
[1750708108796,0.04,2309.9,2309.8,4.32937916]
[1750708108988,0.04,2309.9,2309.8,7.479]
[1750708109190,0.04,2309.9,2309.8,11.80837916]
[1750708110411,0.04,2309.9,2309.8,12.62227916]
[1750708110911,0.04,2309.9,2309.8,5.14327916]
[1750708111204,0.04,2309.9,2309.8,4.32937916]
[1750708111378,0.04,2309.9,2309.8,11.80537916]
[1750708112806,0.04,2309.9,2309.8,4.32937916]
[1750708113009,0.04,2309.9,2309.8,11.80337916]
[1750708114591,0.04,2309.9,2309.8,4.32937916]
[1750708114791,0.04,2309.9,2309.8,11.80337916]
[1750708118533,0.04,2309.9,2309.8,4.32937916]
[1750708118832,0.04,2309.9,2309.8,11.79937916]
[1750708119494,0.04,2309.9,2309.8,12.58777916]
[1750708120429,0.04,2309.9,2309.8,11.58777916]
[1750708120833,0.04,2309.9,2309.8,22.13777916]
[1750708122248,0.04,2309.9,2309.8,3.87937916]
[1750708122560,10.55,2309.8,2308.9,6.0537235]
[1750708122865,0.8044,2309.3,2308.9,7.464]
[1750708123347,1.47011208,2309.8,2308.9,7.464]
[1750708123348,10.0,2309.5,2308.9,11.79500214]
[1750708123546,10.0,2309.5,2309.3,4.33022287]
[1750708123748,0.8044,2309.6,2309.3,11.79422287]
[1750708123958,0.8044,2309.6,2309.3,7.464]
[1750708124155,2.071,2309.5,2309.3,4.33012953]
[1750708124455,2.071,2309.5,2309.4,7.463]
[1750708125647,2.071,2309.5,2309.4,11.79312903]
[1750708126138,0.8044,2309.6,2309.4,11.79312903]
[1750708126343,2.072,2309.5,2309.4,11.79312903]
[1750708126843,2.35964,2309.5,2309.1,4.33051753]
[1750708127046,2.35964,2309.5,2309.1,7.463]
[1750708127384,0.28764,2309.5,2309.3,4.33029989]
[1750708127515,2.072,2309.4,2309.2,4.33039757]
[1750708127849,2.072,2309.4,2309.3,4.33031654]
[1750708128020,0.8044,2309.6,2309.4,4.32998686]
[1750708128349,2.072,2309.5,2309.4,11.79298686]
[1750708129453,2.072,2309.5,2309.4,7.463]
[1750708129618,2.072,2309.5,2309.4,11.79312903]
[1750708129818,0.8044,2309.6,2309.4,11.79312903]
[1750708130052,2.072,2309.5,2309.4,11.79312903]
[1750708130371,10.04,2309.9,2309.5,4.32994154]
[1750708130372,0.04,2309.9,2309.5,4.32994154]
[1750708130581,2.072,2309.8,2309.7,4.32954276]
[1750708130720,11.66385391,2309.9,2309.7,4.32954276]
[1750708130921,2.072,2309.8,2309.7,4.32954276]
[1750708131124,10.8389,2309.9,2309.8,4.32937916]
[1750708131369,12.9109,2309.9,2309.8,4.32937916]
[1750708131672,12.9109,2309.9,2309.7,4.32946734]
[1750708131819,12.9109,2309.9,2309.8,4.32937916]
[1750708132227,12.9109,2309.9,2309.7,4.32946734]
[1750708132228,12.9109,2309.9,2309.7,4.32947539]
[1750708133565,12.9109,2309.9,2309.6,4.32966281]
[1750708133743,12.9109,2309.9,2308.8,6.91527652]
[1750708133744,0.55,2309.8,2309.5,11.79083018]
[1750708134323,0.55,2309.8,2309.5,7.461]
[1750708134520,16.82942726,2309.8,2309.5,4.32993347]
[1750708134718,0.55,2309.8,2309.6,4.3296641]
[1750708134961,0.55,2309.8,2309.6,4.3295671]
[1750708135357,0.55,2309.8,2309.6,8.65917502]
[1750708135565,0.55,2309.8,2309.6,8.65915739]
[1750708135924,0.55,2309.8,2309.7,4.32956661]
[1750708136132,2.622,2309.8,2309.7,4.32956661]
[1750708136828,2.622,2309.8,2309.6,11.78963764]
[1750708137366,2.622,2309.8,2309.7,4.32956661]
[1750708137866,2.622,2309.8,2309.6,7.46]
[1750708137867,2.072,2309.8,2309.6,11.78966093]
[1750708138061,13.22509,2309.9,2309.6,11.78966093]
[1750708138062,19.36220172,2309.9,2309.6,7.459]
[1750708138367,2.06,2309.7,2309.6,11.78875406]
[1750708140284,16.97601172,2309.9,2309.6,11.78875406]
[1750708140431,18.23711172,2309.9,2309.8,4.32937916]
[1750708141267,0.8065,2309.7,2309.3,4.33015772]
[1750708141450,16.82942726,2309.6,2309.0,7.457]
[1750708141646,16.82942726,2309.6,2309.2,4.3303896]
[1750708141895,16.82942726,2309.6,2309.3,4.33030223]
[1750708142184,19.59301999,2309.6,2309.2,4.33038812]
[1750708142534,19.59301999,2309.6,2309.3,4.33029436]
[1750708142879,19.59301999,2309.6,2309.3,4.33026096]
[1750708143080,7.457,2309.5,2309.3,4.33026096]
[1750708143383,2.061,2309.4,2309.3,4.33031654]
[1750708143879,2.061,2309.4,2309.2,4.33038886]
[1750708144236,27.04901999,2309.6,2309.3,4.33031654]
[1750708144460,2.061,2309.5,2309.3,4.33031654]
[1750708144840,2.061,2309.5,2309.2,4.33038238]
[1750708145064,2.061,2309.5,2309.2,4.33036442]
[1750708145372,2.061,2309.5,2309.3,4.33030335]
[1750708146396,4.222902,2309.4,2309.0,4.3306976]
[1750708146703,0.7619,2309.7,2309.6,4.32975406]
[1750708146899,2.061,2309.7,2309.6,4.32975406]
[1750708147174,2.061,2309.7,2309.4,4.33012075]
[1750708147473,10.0,2309.8,2309.6,4.32961275]
[1750708147680,12.611,2309.7,2309.6,4.32961275]
[1750708147979,10.55,2309.7,2309.6,4.32961275]
[1750708148377,12.061,2309.7,2309.6,4.32961275]
[1750708151100,6.93901172,2309.9,2309.8,4.32937916]
[1750708151101,6.17711172,2309.9,2309.8,4.32937916]
[1750708151336,6.17711172,2309.9,2309.8,12.56977916]
[1750708151337,0.04,2309.9,2309.8,12.56977916]
[1750708151585,0.04,2309.9,2309.8,5.11777916]
[1750708151892,0.04,2309.9,2309.8,11.78137916]
[1750708153346,0.04,2309.9,2309.8,12.65031018]
[1750708153747,0.83,2309.9,2309.8,4.32937916]
[1750708153957,0.83,2309.9,2309.6,4.32968196]
[1750708154197,12.061,2309.8,2309.6,4.32962543]
[1750708154760,12.061,2309.8,2309.5,4.32983513]
[1750708155003,12.061,2309.8,2309.1,0.8033]
[1750708155004,10.55,2309.7,2309.1,0.8033]
[1750708155200,10.55,2309.7,2309.5,4.32983154]
[1750708155201,0.55,2309.7,2309.5,4.32983154]
[1750708155797,0.55,2309.7,2309.6,4.32975406]
[1750708156407,2.061,2309.8,2309.6,4.32975406]
[1750708157186,2.061,2309.8,2309.4,4.33005479]
[1750708157187,0.55,2309.7,2309.4,4.33005479]
[1750708157369,6.68711172,2309.7,2309.4,4.33005479]
[1750708158017,6.68711172,2309.7,2309.2,7.45]
[1750708158227,6.68711172,2309.7,2309.6,4.32975406]
[1750708158518,18.74711172,2309.7,2309.6,4.32975406]
[1750708158672,18.74711172,2309.7,2309.5,4.32985996]
[1750708159823,18.74711172,2309.7,2309.4,4.33012475]
[1750708160318,18.74711172,2309.7,2309.4,4.3299832]